Cogmind - Beta 14 @@@ ROGUE MODE // 2024.11.01 @ 22:58:18 Player: Xellophane Result: Destroyed by S-10 Pest with Light Assault Rifle Performance ------------- Evolutions (0) 0 Regions Visited (2) 400 Robots Destroyed (21) 105 Value Destroyed (440) 440 Prototype IDs (3) 60 Alien Tech Used (0) 0 Bonus (0) 0 TOTAL SCORE: 1005 Bonus ------- None Cogmind --------- Core Integrity 0/250 Matter 300/300 Energy 115/125 System Corruption 0% Temperature Warm (126) Movement Walking (120) Location -10/Mines Parts ------- > --- POWER (1) -------- Light Ion Engine > --- PROPULSION (2) --- Aluminum Leg Aluminum Leg > --- UTILITY (2) ------ Medium Storage Unit Signal Interpreter > --- WEAPON (2) ------- Medium Laser Particle Gun > --- INVENTORY (10) --- Light Ion Engine Aluminum Leg Aluminum Leg Heat Sink Large Storage Unit Authchip [Power] Medium Laser Grenade Launcher Mining Laser Makeshift Spear Peak State ------------ > --- POWER ------------ Light Ion Engine > --- PROPULSION ------- Aluminum Leg Aluminum Leg > --- UTILITY ---------- Medium Storage Unit Seismic Detector > --- WEAPON ----------- Medium Laser Particle Gun > --- INVENTORY -------- Light Ion Engine Light Ion Engine Aluminum Leg Aluminum Leg Heat Sink Large Storage Unit Medium Laser Medium Laser Grenade Launcher Mining Laser [Rating: 9] Favorites ----------- Power Light Ion Engine Engine Light Ion Engine Propulsion Aluminum Leg Treads Light Treads Leg Aluminum Leg Utility Medium Storage Unit Device Seismic Detector Storage Medium Storage Unit Processor Signal Interpreter Weapon Medium Laser Energy Gun Medium Laser Special Melee Weapon Datajack Build | -11 -10 -10 ------- Run | Yrd Mat Min Slots Evolved . | . . . Power . | . . . Propulsion . | . . . Utility . | . . . Weapon . | . . . Parts Attached 20 | 6 11 3 Power 2 | 1 . 1 Engine 2 | 1 . 1 Core . | . . . Reactor . | . . . Propulsion 6 | 2 3 1 Treads 2 | 2 . . Leg 4 | . 3 1 Wheel . | . . . Hover . | . . . Flight . | . . . Utility 6 | 1 5 . Device 2 | . 2 . Storage 3 | 1 2 . Processor 1 | . 1 . Hackware . | . . . Protection . | . . . Artifact . | . . . Weapon 6 | 2 3 1 Energy Gun 5 | 2 2 1 Energy Cannon . | . . . Ballistic Gun . | . . . Ballistic Cannon . | . . . Launcher . | . . . Special Weapon . | . . . Impact Weapon . | . . . Slashing Weapon . | . . . Piercing Weapon . | . . . Special Melee Weapon 1 | . 1 . Unidentified Prototypes . | . . . Parts Lost 3 | . 2 1 Power 1 | . . 1 Propulsion 1 | . 1 . Utility 1 | . 1 . Weapon . | . . . Highest Loss Streak 1 | . 1 1 To Critical Strikes . | . . . Average Slot Usage (%) 99 | . 99 99 Engine 13 | . 14 13 Treads 1 | . 3 . Leg 26 | . 24 28 Device 6 | . 13 . Storage 14 | . 14 14 Processor 7 | . . 14 Energy Gun 27 | . 27 28 Peak Build Rating 9 | 6 9 9 Average Rating 8 | 5 8 8 On Entrance 5 | . 6 9 Naked Turns . | . . . Heaviest Build 29 | 12 29 18 Greatest Support 40 | 40 40 20 Greatest Overweight (x) 2 | 2 1 . Average Overweight (x) . | . . . Largest Inventory Capacity 15 | 8 15 10 Average Capacity 9 | 7 9 10 Most Carried 10 | 7 10 10 Average Carried 8 | 3 8 9 Final Capacity 10 | 8 10 10 Final Carried 10 | 7 10 10 Class Distribution -------------------- 57% | Mutant 42% | Scavenger-Mutant Dominant Class ---------------- Mutant | -10/Materials Scavenger-Mutant | -10/Mines Resources | -11 -10 -10 ----------- Run | Yrd Mat Min Matter Collected 400 | 260 80 60 Remotely . | . . . Salvage Created 698 | 166 361 171 Parts 28 | 7 19 2 Haulers Intercepted 2 | . 2 . Recyclers Shooed 5 | . 5 . Parts Field Recycled . | . . . Retrieved Matter . | . . . Parts Self-Destructed . | . . . Prevented . | . . . Kills | -11 -10 -10 ------- Run | Yrd Mat Min Combat Hostiles Destroyed 13 | . 8 5 Guns 12 | . 8 4 Classes Destroyed 7 | 3 4 . Worker 2 | 2 . . Tunneler 2 | 2 . . Hauler 2 | . 2 . Recycler 1 | 1 . . Watcher 1 | . 1 . Swarmer 4 | . 3 1 Grunt 9 | . 5 4 Best Kill Streak 5 | 4 5 1 Combat Bots Only 3 | . 3 1 Max Kills in Single Turn 1 | 1 1 1 Gunslinging . | . . . Exploded . | . . . Melee . | . . . Uniques/NPCs Destroyed . | . . . Combat | -11 -10 -10 -------- Run | Yrd Mat Min Hostile Shots Fired 85 | . 40 45 Missed 29 | . 12 17 Damage Taken 729 | . 383 346 Core 250 | . 110 140 Absorbed by Shields . | . . . Core Remaining (%) 100 | 100 . . Volleys Fired 84 | 15 44 25 Largest 2 | 2 2 2 Hottest 115 | 100 115 115 Shots Fired 160 | 30 80 50 Gun 160 | 30 80 50 Cannon . | . . . Launcher . | . . . Special . | . . . Kinetic . | . . . Thermal 160 | 30 80 50 Explosive . | . . . Electromagnetic . | . . . Robot Hit Streak 10 | 5 10 7 Robot Miss Streak 4 | 2 4 3 Penetration Max . | . . . Secondary Targets 1 | . . 1 Max Gunslinging Chain 1 | . . 1 Shots Hit Robots 98 | 18 47 33 Core Hits 34 | 6 20 8 Critical Kills . | . . . Critical Parts Destroyed . | . . . Critical Strikes 6 | 2 1 3 Burn 6 | 2 1 3 Melee Attacks . | . . . Impact . | . . . Slashing . | . . . Piercing . | . . . Sneak Attacks . | . . . Combat Hostiles . | . . . Follow-up Attacks . | . . . Damage Inflicted 1377 | 223 669 485 Guns 1377 | 223 669 485 Cannons . | . . . Explosions . | . . . Melee . | . . . Ramming . | . . . Kinetic . | . . . Thermal 1377 | 223 669 485 Explosive . | . . . Electromagnetic . | . . . Impact . | . . . Slashing . | . . . Piercing . | . . . Highest Corruption . | . . . Average Corruption . | . . . Corruption Purged . | . . . Corruption Blocked . | . . . Overload Shots . | . . . Overflow Damage . | . . . Projectiles . | . . . Explosions . | . . . Melee . | . . . Knockbacks . | . . . Impact . | . . . Kinetic . | . . . Secondary . | . . . Self-Inflicted Damage . | . . . Shots . | . . . Rammed . | . . . Targets Rammed . | . . . Kicked . | . . . Crushed . | . . . Highest Temperature 463 | 195 463 373 Average Temperature 130 | 76 137 145 Received Heat Transfer 357 | . 153 204 Effects 12 | . 7 5 Shutdowns 1 | . 1 . Energy Bleed 2 | . 2 . Interference 8 | . 3 5 Damage (minor) 1 | . 1 . Siege Activations . | . . . Robots Corrupted . | . . . Combat Hostiles . | . . . Parts Fried . | . . . Impact Corruptions . | . . . Robots Melted 1 | . . 1 Combat Hostiles 1 | . . 1 Parts Melted 6 | 2 2 2 Heat Transferred 4107 | 814 1850 1443 Parts Sabotaged . | . . . Parts Stolen . | . . . Parts Stripped . | . . . Power Chain Reactions . | . . . Alert | -11 -10 -10 ------- Run | Yrd Mat Min Peak Influence 234 | 25 234 92 Initial 42 | . 16 42 Average 64 | 10 82 55 Maximum Alert Level 1 | . 1 . Low Security (%) 94 | 100 87 100 Level 1 5 | . 12 . Level 2 . | . . . Level 3 . | . . . Level 4 . | . . . Level 5 . | . . . High Security . | . . . Max Security . | . . . Squads Dispatched . | . . . Investigation . | . . . Extermination . | . . . Reinforcement . | . . . Assault . | . . . Garrison . | . . . Intercept . | . . . Searches Triggered . | . . . Construction Impeded . | . . . Haulers Reinforced . | . . . Active Scanning Responses . | . . . Cargo Convoy Interrupts . | . . . Stealth | -11 -10 -10 --------- Run | Yrd Mat Min Distress Signals . | . . . Communications Jammed . | . . . Distress Signals . | . . . Times Spotted 21 | . 14 7 Peak Tracking Total 3 | . 2 3 Tactical Retreats 1 | . 1 . Traps | -11 -10 -10 ------- Run | Yrd Mat Min Traps Triggered 1 | . 1 . Indirectly . | . . . Trap Hack Attempts . | . . . Triggered . | . . . Disarmed . | . . . Reprogrammed . | . . . Reused . | . . . Traps Extracted . | . . . Installed . | . . . Triggered . | . . . Machines | -11 -10 -10 ---------- Run | Yrd Mat Min Machines Disabled . | . . . Max in Single Turn . | . . . Machines Repaired . | . . . Machines Dismantled . | . . . Machines Sabotaged . | . . . Overloaded Fab Kills . | . . . Hacking | -11 -10 -10 --------- Run | Yrd Mat Min Machines Accessed 5 | . 5 . Terminals 5 | . 5 . Fabricators . | . . . Repair Stations . | . . . Recycling Units . | . . . Scanalyzers . | . . . Garrison Access . | . . . Total Hacks 16 | . 16 . Successful 6 | . 6 . Failed 10 | . 10 . Catastrophic 3 | . 3 . Database Lockouts . | . . . Manual 14 | . 14 . Terminals 16 | . 16 . Fabricators . | . . . Repair Stations . | . . . Recycling Units . | . . . Scanalyzers . | . . . Garrison Access . | . . . Terminal Hacks 6 | . 6 . Prototype ID Bank 2 | . 2 . Terminal Index 1 | . 1 . Hauler Manifests 2 | . 2 . Registered Components 1 | . 1 . Fabricator Hacks . | . . . Repair Station Hacks . | . . . Recycling Unit Hacks . | . . . Scanalyzer . | . . . Garrison Access Hacks . | . . . Unauthorized Hacks . | . . . Terminals . | . . . Fabricators . | . . . Repair Stations . | . . . Recycling Units . | . . . Scanalyzers . | . . . Garrison Access . | . . . Data Cores Recovered . | . . . Used . | . . . Hacking Detections 5 | . 5 . Full Trace Events 3 | . 3 . Feedback Events . | . . . Feedback Blocked . | . . . Robot Schematics Acquired . | . . . Robots Built . | . . . Authchips . | . . . Time . | . . . Total Robot Build Rating . | . . . Part Schematics Acquired . | . . . Parts Built . | . . . Authchips . | . . . Time . | . . . Total Part Build Rating . | . . . Parts Repaired . | . . . Time . | . . . Parts Recycled . | . . . Recycled Matter . | . . . Retrieved Matter . | . . . Retrieved Components . | . . . Parts Scanalyzed . | . . . Part Schematics Acquired . | . . . Parts Damaged . | . . . Bothacking | -11 -10 -10 ------------ Run | Yrd Mat Min Used RIF Installer . | . . . Robots Hacked . | . . . Non-combat . | . . . Combat . | . . . Robot Hacks Applied . | . . . Relay Couplers Released . | . . . Fabnet Peak Effective % . | . . . Robots Rewired . | . . . Allies Hacked . | . . . Hacks Repelled . | . . . Allies | -11 -10 -10 -------- Run | Yrd Mat Min Total Allies . | . . . Largest Group . | . . . Highest-Rated Group . | . . . Highest-Rated Ally . | . . . Total Orders . | . . . Ally Attacks . | . . . Total Damage . | . . . Kills . | . . . Allies Corrupted . | . . . Allies Melted . | . . . Intel | -11 -10 -10 ------- Run | Yrd Mat Min Robot Analysis Total . | . . . Derelict Logs Recovered 3 | . . 3 Drone Launches . | . . . Drone Recoveries . | . . . Exploration | -11 -10 -10 ------------- Run | Yrd Mat Min Turns Passed 1614 | 137 744 733 Spaces Moved 1048 | 55 475 518 Core 11 | 11 . . Treads 86 | 44 42 . Legs 951 | . 433 518 Wheels . | . . . Hover . | . . . Flight . | . . . Fastest Speed 50 | 50 120 120 Average Speed 122 | 140 123 120 Slowest Speed 190 | 160 190 120 Overloaded Moves . | . . . Propulsion Burnouts . | . . . Robots Hopped . | . . . Cave-ins Triggered . | . . . Exploration Rate (%) 56 | 4 75 90 Regions Visited 2 Branch Regions 1 Pre-discovered Areas 1 | . . 1 Known Exits Taken 1 | . 1 . Unknown Exits Taken 1 | 1 . . Scrap Searched 1 | . . 1 Spaces Dug . | . . . Terrain Destroyed . | . . . Melee . | . . . Projectile . | . . . AOE . | . . . Terrain Rammed . | . . . Walls Destroyed . | . . . Machines Disabled . | . . . Actions | -11 -10 -10 --------- Run | Yrd Mat Min Total 1213 | 82 549 582 Wait 37 | . 7 30 Move 1046 | 54 474 518 Hop . | . . . Pick Up 19 | 7 9 3 Fast Attach 7 | 6 . 1 Attach 5 | . 3 2 Detach . | . . . Swap 8 | . 8 . Drop 7 | . 4 3 Fire 84 | 15 44 25 Melee . | . . . Ram . | . . . Kick . | . . . Crush . | . . . Escape Stasis . | . . . Rewire . | . . . Trap . | . . . Miscellaneous . | . . . Route ------- -11/Scrapyard -10/Materials (discovered 4 exits: *Mat x2 / *Min x2) -10/Mines (discovered 3 exits: *Mat x2 / Sub) History --------- Turn | Location | Event 27 | -11/Scrapyard | Discovered new exit (range 16) 138 | -11/Scrapyard | Entered Materials 296 | -10/Materials | Discovered new exit (range 7) 304 | -10/Materials | Build established: Mutant 479 | -10/Materials | Discovered new exit (range 13) 578 | -10/Materials | Discovered new exit (range 7) 736 | -10/Materials | Discovered new exit (range 8) 882 | -10/Materials | Identified exit to Mines 882 | -10/Materials | Entered Mines 944 | -10/Mines | Discovered new exit (range 10) 954 | -10/Mines | Identified exit to Materials 962 | -10/Mines | Discovered exit to Materials (range 7) 998 | -10/Mines | Found a hidden stash of uninstalled traps 1011 | -10/Mines | Learned location of Storage (-7) 1187 | -10/Mines | A weapon hastily lodged in a ceiling crevice suddenly fell to the ground 1230 | -10/Mines | Build established: Scavenger-Mutant 1393 | -10/Mines | Core integrity fell below 50% 1485 | -10/Mines | Core integrity fell below 20% 1586 | -10/Mines | Identified exit to Subcaves 1615 | -10/Mines | Destroyed by S-10 Pest with Light Assault Rifle Last Messages --------------- 01422_ G-34 Mercenary destroyed. 01425_ Overheating: System interference. 01425_ Med. Laser temporarily disabled. 01425_ Signal Interpreter temporarily disabled. 01468_ Lgt. Ion Engine destroyed. 01468_ Critical hit (Burn: +37). 01475_ Acquired 10 matter. 01477_ Overheating: System interference. 01477_ Med. Laser temporarily disabled. 01477_ Particle Gun temporarily disabled. 01506_ G-47 Trooper destroyed. 01516_ Acquired Aluminum Leg. 01577_ T-07 Excavator is excavating. 01586_ Acquired derelict log, extracted data. Loading 1 Mines exit... 01597_ T-07 Excavator is excavating. 01614_ Flight Unit melted. 01614_ S-10 Pest destroyed. 01614_ Switching to secondary target: S-10 Pest. 01614_ S-10 Pest suffers critical hit (Burn). Map ----- +----------------------------------------------------+ | | | | | | | | | | | | | | | | | | | | | | | | | | | | | | | | | | | | | ????????????????????????????????????????????? | | ????????????????????????????????????????????? | | ????????????????????????????????????????????? | | ????????????????????????????????????????????? | | ????????????????????????????????????????????? | | ???????????"????????????????????????????????? | | ????????? """ #######??????????????????????? | | ????????? """ % @#??????????????????????? | | ???????# #### #??????###?????????????? | | ???????##?????????# #??????# ##????????????? | | ??????????????????# ##?????# #????????????? | | ?????????????????##s ##????# #????????????? | | ??????>?????# #### s ##???# #????????????? | | ????????????# ##??# #????????????? | | ????????# #### #????????????? | | ????????## #### u ######???????? | | ?????????####????# ##??????? | | ?????????????????# """ #??????? | | ????????????????## """ #??????? | | ????????????????# """ ### #??????? | | ????????????????# ##??# ##??????? | | ????????????????## #????####???????? | | ?????????????????# ### #???????????????? | | ?????????????????# #?## ##??????????? ??? | | ?????????????????# #??# #???????????? ??? | | ?????????????????# #?? #?????????### #?? | | ???????????####??# #? #???????## #?? | | ??????????## #### ## #?????## #?? | | ?????????## ### #????## #?? | | ?????????# #?# ## ##???## ##? | | ?????????# ####?# ?#####????# ## | | ?????????## ##????# ??????????# | +----------------------------------------------------+ Best States ------------- Heat Dissipation 35 Energy Generation 10 Energy Capacity 125 Matter Stores 300 Matter Capacity 300 Sight Range 16 Terrain Scan Density 10 Evasion (%) 55 Recoil Reduction 2 Authchip Count 1 Item Schematics ----------------- None Robot Schematics ------------------ None Fabricated ------------ Nothing Alien Tech Used ----------------- None Achievements -------------- None Challenges ------------ None Game ------ Seed ShrapnelHelicalStreamer Manual? 0 Play Time 00:19:44 Cumulative 15.8 hours Start 2024.11.01 @ 22:38:18 End 2024.11.01 @ 22:58:18 Sessions 1 Manual Loads 0 Difficulty Rogue Special Mode None Game No. 22 Rogue 22 Adventurer 0 Explorer 0 Win Type - Total 0 Types 0/0/0/0/0/0/0/0/0 Lore% 6 Gallery% 10 Achievement% 16 Wizard Run 0 Options --------- Layout 0 ASCII 0 Keyboard 1 Movement Numpad Keybinds 0 Fullscreen 2 Font 18/SmallcapsGlow Map View 76x50 Zoom Use 0% Tactical HUD 1 Map Filters NONE Filters NONE Steam 1 RUN: a6649dac-7302-45d0-9a7d-f55857384952